bitfinex/quotes_SOLUSD_20260113
["timestamp","ask_amount","ask_price","bid_price","bid_amount"]
[1768343715427,2.50394458,146.08,146.04,0.70749976]
[1768343716205,2.50394458,146.08,146.01,6.8487104]
[1768343716406,2.50394458,146.05,145.98,2.50394458]
[1768343716826,2.50394458,146.04,145.96,9.55472431]
[1768343717029,12.4,146.07,145.96,0.2]
[1768343717218,2.50394458,146.02,145.96,0.2]
[1768343717415,19.0801107,146.07,145.96,4.1372499]
[1768343717416,3.9372499,146.03,145.96,4.1372499]
[1768343717614,3.9372499,146.03,145.96,0.2]
[1768343718126,3.9372499,146.03,145.97,0.68501042]
[1768343718348,3.9372499,146.01,145.97,0.68501042]
[1768343718835,3.9372499,146.01,145.96,0.2]
[1768343718836,3.9372499,145.98,145.96,1e-08]
[1768343719540,6.85072275,145.97,145.95,1e-08]
[1768343719709,6.85072275,145.97,145.93,0.4488133]
[1768343719710,3.9372499,145.96,145.93,0.4488133]
[1768343719910,3.9372499,145.96,145.89,12.46]
[1768343719911,3.9372499,145.96,145.89,0.1]
[1768343720109,4.59309911,145.96,145.89,0.1]
[1768343720333,3.9372499,145.95,145.89,0.1]
[1768343720735,3.9372499,145.93,145.89,0.1]
[1768343721114,0.65584921,145.94,145.89,0.1]
[1768343721429,10.45984494,145.93,145.89,0.1]
[1768343721614,6.85307017,145.92,145.89,0.1]
[1768343721814,6.85307017,145.92,145.89,0.78501042]
[1768343722008,7.50857325,145.93,145.87,0.68501042]
[1768343722209,10.45984494,145.92,145.87,0.68501042]
[1768343722909,10.45984494,145.91,145.87,0.68501042]
[1768343723646,17.31381069,145.91,145.87,0.68501042]
[1768343724133,6.85396575,145.91,145.87,0.68501042]
[1768343724341,17.96887235,145.92,145.87,0.68501042]
[1768343724650,7.50902741,145.92,145.87,0.68501042]
[1768343724814,7.5090032,145.92,145.87,0.68501042]
[1768343725016,17.96884814,145.92,145.87,0.68501042]
[1768343725428,0.65584921,145.91,145.87,0.68501042]
[1768343725738,0.65584921,145.93,145.87,0.68501042]
[1768343725906,17.96834001,145.93,145.87,0.68501042]
[1768343726112,7.50742569,145.96,145.87,0.68501042]
[1768343726346,34.22519628,146.1,145.97,0.68501042]
[1768343726515,0.65584921,146.03,145.87,16.4603462]
[1768343726714,0.65584921,146.03,145.96,10.45984494]
[1768343726929,0.65584921,146.06,145.98,10.45984494]
[1768343727129,10.45984494,146.04,145.97,10.45984494]
[1768343727337,0.65584921,146.06,145.97,10.45984494]
[1768343727634,17.30635826,146.06,145.97,23.97752962]
[1768343727833,10.45984494,146.05,145.97,23.97752962]
[1768343728223,7.50188193,146.07,145.97,23.97752962]
[1768343728421,10.45984494,146.06,146.0,0.68501042]
[1768343728622,10.45984494,146.05,146.0,0.68501042]
[1768343729340,10.45984494,146.05,146.01,0.68501042]
[1768343730225,10.45984494,146.04,146.01,0.68501042]
[1768343730617,10.45984494,146.04,146.01,7.5336978]
[1768343731035,10.45984494,146.06,146.02,0.68501042]
[1768343731618,10.45984494,146.07,146.02,0.68501042]
[1768343732018,6.84570042,146.08,146.02,0.68501042]
[1768343732216,10.45984494,146.07,146.02,0.68501042]
[1768343734219,17.30594405,146.07,146.02,0.68501042]
[1768343734846,10.45984494,146.07,146.03,0.68501042]
[1768343735025,7.56592089,146.08,146.03,0.68501042]
[1768343735226,10.45984494,146.06,146.03,0.68501042]
[1768343735843,10.45984494,146.07,146.03,0.68501042]
[1768343736047,10.45984494,146.06,146.03,0.68501042]
[1768343736456,0.72031511,146.08,146.03,0.62501043]
[1768343736746,10.45984494,146.06,146.01,19.22870604]
[1768343737432,10.45984494,146.06,146.01,6.84870604]
[1768343737641,10.45984494,146.06,146.02,12.38]
[1768343738528,10.45984494,146.06,146.02,13.06958135]
[1768343738827,11.18016005,146.07,146.02,13.06958135]
[1768343740138,10.45984494,146.09,146.04,0.68958135]
[1768343740321,10.45984494,146.1,146.04,0.68958135]
[1768343741747,10.45984494,146.1,146.06,0.68958135]
[1768343742133,18.02484838,146.1,146.04,7.53673127]
[1768343742536,18.02484838,146.1,146.05,0.68958135]
[1768343742733,7.56500344,146.1,146.05,0.68958135]
[1768343742946,7.56500344,146.1,146.03,0.68958135]
[1768343742947,10.45984494,146.06,146.03,0.68958135]
[1768343743156,10.45984494,146.06,146.03,13.06958135]
[1768343743341,3.93562877,146.06,146.03,13.06958135]
[1768343744047,3.93562877,146.05,146.03,0.68958135]
[1768343744456,3.93562877,146.05,146.01,19.91836842]
[1768343744828,3.93562877,146.03,146.01,0.68958135]
[1768343745150,3.93562877,146.09,146.04,0.68958135]
[1768343745361,10.43769604,146.08,146.04,0.68958135]
[1768343745730,10.43769604,146.06,146.02,13.06958135]
[1768343746233,10.43769604,146.04,146.02,0.68958135]
[1768343746751,10.43769604,146.04,145.93,0.3589333]
[1768343746929,10.43769604,146.04,145.94,12.38]
[1768343746930,10.43769604,146.01,145.94,12.38]
[1768343747253,10.43769604,146.01,145.95,0.68958135]
[1768343747552,10.43769604,146.03,145.95,0.68958135]
[1768343747757,10.43769604,146.03,145.96,0.68958135]
[1768343748257,17.11625359,146.06,145.97,0.68958135]
[1768343748258,6.84699451,146.05,145.97,0.68958135]
[1768343748434,10.43769604,146.02,145.99,0.68958135]
[1768343748636,0.72031511,146.04,145.99,0.68958135]
[1768343748939,10.43769604,146.03,145.99,0.68958135]
[1768343750653,17.28570164,146.03,145.99,0.68958135]
[1768343750857,0.72031511,146.04,145.99,0.68958135]
[1768343751071,11.15801115,146.04,145.99,0.68958135]
[1768343751774,10.43769604,146.03,145.99,0.68958135]
[1768343751950,10.43769604,146.03,145.99,7.53932367]
[1768343752154,10.43769604,146.03,145.99,0.68958135]
[1768343752866,0.72031511,146.04,145.99,0.68958135]
[1768343753072,11.15801115,146.04,145.99,0.68958135]
[1768343753371,10.43769604,146.04,146.0,0.68958135]
[1768343753568,6.6801107,146.1,146.0,0.68958135]
[1768343753872,0.72031511,146.14,146.08,7.53514542]
[1768343754061,0.72031511,146.14,146.09,0.68958135]
[1768343754262,10.43769604,146.13,146.09,0.68958135]
[1768343754572,10.43769604,146.11,146.06,0.68958135]
[1768343754764,11.15801115,146.11,146.06,0.68958135]
[1768343755275,0.72031511,146.11,146.06,0.68958135]
[1768343755460,10.43769604,146.1,146.06,0.68958135]
[1768343756276,10.43769604,146.1,146.06,7.5359788]
[1768343756460,10.43769604,146.12,146.06,7.5359788]
[1768343756865,10.43769604,146.12,146.07,0.68958135]
[1768343757066,0.72031511,146.13,146.07,0.68958135]
[1768343757254,11.15801115,146.13,146.07,0.68958135]
[1768343757764,0.72031511,146.13,146.07,11.12727739]
[1768343758167,0.72031511,146.13,146.07,7.5355127]
[1768343758562,0.72031511,146.12,146.07,7.5355127]
[1768343758960,11.15801115,146.12,146.07,0.68958135]
[1768343759166,0.72031511,146.12,146.07,0.68958135]
[1768343759361,0.72031511,146.12,146.07,7.53556031]
[1768343760377,0.72031511,146.12,146.07,0.68958135]
[1768343760581,11.15801115,146.12,146.07,0.68958135]
[1768343760758,0.72031511,146.12,146.07,0.68958135]
[1768343761260,0.72031511,146.12,146.05,19.22689165]
[1768343761261,0.72031511,146.1,146.05,19.22689165]
[1768343762075,11.15801115,146.08,146.03,6.84751141]
[1768343762282,0.72031511,146.08,146.03,6.84751141]
[1768343762670,0.72031511,146.08,146.03,7.53709276]
[1768343763889,0.72031511,146.1,146.04,0.68958135]
[1768343764064,0.72031511,146.09,146.04,0.68958135]
[1768343764264,0.72031511,146.09,146.04,7.53674433]
[1768343764484,6.84433597,146.11,146.05,0.68958135]
[1768343764485,18.00234712,146.11,146.05,0.68958135]
[1768343765468,10.43769604,146.1,146.05,0.68958135]
[1768343765663,0.72031511,146.11,146.05,0.68958135]
[1768343766193,11.15801115,146.11,146.05,0.68958135]
[1768343766401,0.69309337,146.1,146.05,7.53621697]
[1768343767384,0.69309337,146.1,146.06,10.43769604]
[1768343767585,0.69309337,146.12,146.06,11.10740666]
[1768343767905,0.69309337,146.1,146.05,23.96406115]
[1768343768403,0.69309337,146.09,146.03,17.11918148]
[1768343768578,0.69309337,146.08,146.03,34.40478548]
[1768343770374,0.69309337,146.08,146.03,35.0744961]
[1768343770577,10.43769604,146.1,146.04,0.66971062]
[1768343771189,0.69309337,146.11,146.06,0.66971062]
[1768343771504,11.13078941,146.11,146.06,0.66971062]
[1768343772504,11.13078941,146.11,146.06,7.51605012]
[1768343773704,0.69309337,146.13,146.07,0.66971062]
[1768343774010,0.69309337,146.13,146.07,11.10740666]
[1768343774194,11.13078941,146.13,146.07,0.66971062]
[1768343774395,0.69309337,146.12,146.07,0.66971062]
[1768343774698,0.69309337,146.12,146.06,34.40028913]
[1768343774699,0.69309337,146.12,146.05,22.81769604]
[1768343774896,17.10627983,146.15,146.05,0.66971062]
[1768343775098,17.10627983,146.15,146.06,0.66971062]
[1768343775288,10.43769604,146.12,146.06,0.66971062]
[1768343775792,10.43769604,146.13,146.06,11.10740666]
[1768343775981,17.28107359,146.13,146.07,6.84571955]
[1768343776182,17.28107359,146.13,146.07,7.51543017]
[1768343776378,17.28107359,146.13,146.07,7.17287017]
[1768343776586,10.43769604,146.12,146.07,0.66971062]
[1768343776783,6.84337755,146.13,146.07,0.66971062]
[1768343777000,11.15623563,146.12,146.07,0.66971062]
[1768343777222,11.15623563,146.12,146.07,0.60971065]
[1768343778210,0.71853959,146.11,146.06,6.84630946]
[1768343778414,10.43769604,146.12,146.06,7.55955614]
[1768343778621,10.43769604,146.1,146.05,6.84678452]
[1768343778786,6.8439443,146.12,146.05,6.84678452]
[1768343778989,10.43769604,146.1,146.05,6.84678452]
[1768343779300,6.42249828,146.1,146.05,6.84678452]
[1768343779496,23.95316959,146.12,146.05,6.84678452]
[1768343780107,36.35316959,146.12,146.05,6.84678452]
[1768343780285,36.35316959,146.12,146.05,7.5600312]
[1768343780493,0.71853959,146.11,146.06,0.71324668]
[1768343781311,6.42249828,146.08,146.04,0.71324668]
[1768343781488,7.14103787,146.06,146.01,0.71324668]
[1768343781689,7.14103787,146.05,145.99,0.71324668]
[1768343782019,7.14103787,146.05,146.0,0.71324668]
[1768343782390,13.98824233,146.05,146.0,0.71324668]
[1768343782591,0.71853959,146.04,145.98,7.13574496]
[1768343782913,0.71853959,146.04,145.99,0.71324668]
[1768343783406,7.14103787,146.03,145.98,7.56350013]
[1768343783612,7.14103787,146.03,145.99,0.71324668]
[1768343784198,6.42249828,146.02,145.99,0.71324668]
[1768343784398,6.42249828,146.02,145.98,0.71324668]
[1768343784801,0.18579312,146.01,145.97,6.85068441]
[1768343784999,0.18579312,146.01,145.97,7.56393109]
[1768343785314,7.14103787,146.03,145.97,7.56393109]
[1768343785699,7.14103787,146.02,145.97,7.56393109]
[1768343785997,7.14103787,146.02,145.97,0.71324668]
[1768343786398,0.71853959,146.02,145.97,0.71324668]
[1768343786599,12.4,146.03,145.98,0.71324668]
[1768343786799,18.82249828,146.03,145.98,0.71324668]
[1768343787013,12.4,146.03,145.98,0.71324668]
[1768343787315,12.4,146.03,145.89,0.71324668]
[1768343787316,0.099,145.98,145.89,0.71324668]
[1768343787608,6.85072275,145.97,145.91,0.71324668]
[1768343787789,9.37367598,145.97,145.91,0.71324668]
[1768343787988,0.10414344,145.96,145.89,7.5673638]
[1768343788193,0.10414344,145.96,145.9,0.71324668]
[1768343788393,0.10414344,145.96,145.9,7.56715549]
[1768343788618,0.10414344,145.96,145.9,10.09010872]
[1768343789097,9.37367598,145.97,145.91,0.71324668]
[1768343789291,6.85072275,145.97,145.91,0.71324668]
[1768343789914,23.97752962,145.97,145.91,0.71324668]
[1768343790209,23.97752962,145.97,145.89,13.28789343]
[1768343790210,7.04689008,145.96,145.89,0.71324668]
[1768343790514,7.04689008,145.96,145.9,0.71324668]
[1768343790716,7.04689008,145.96,145.9,7.56713663]
[1768343790913,0.61334419,145.96,145.91,0.71324668]
[1768343791816,0.61853959,145.98,145.92,0.71324668]
[1768343792114,13.28338012,145.99,145.93,0.71324668]
[1768343792418,6.43354589,145.99,145.93,0.71324668]
[1768343792590,0.61853959,146.0,145.93,0.71324668]
[1768343792795,13.90150099,146.0,145.93,0.71324668]
[1768343793708,13.90150099,146.0,145.93,7.56538201]
[1768343793912,6.43354589,145.99,145.94,0.71324668]
[1768343795216,6.43354589,145.98,145.94,0.71324668]
[1768343795610,6.43354589,145.98,145.93,6.85213533]
[1768343795818,13.38236675,145.99,145.93,7.50470701]
[1768343796031,0.099,146.01,145.95,0.65257168]
[1768343796328,6.53254589,146.01,145.96,0.65257168]
[1768343796696,0.099,146.01,145.96,0.65257168]
[1768343797204,0.099,146.01,145.96,7.50375264]
[1768343798111,6.43354589,146.01,145.96,0.65257168]
[1768343798316,6.43354589,146.01,145.97,0.65257168]
[1768343798502,6.84853713,146.02,145.97,0.65257168]
[1768343798699,6.94753656,146.02,145.97,0.65257168]
[1768343799223,13.28241472,146.01,145.97,0.65257168]
[1768343799611,6.43354589,146.01,145.97,0.65257168]
[1768343799806,6.43354589,146.0,145.95,0.65257168]
[1768343800004,0.10918453,145.98,145.93,0.65257168]
[1768343800321,6.43354589,145.97,145.93,0.65257168]
[1768343801110,0.099,145.99,145.93,0.65257168]
[1768343801417,6.43354589,145.97,145.93,0.65257168]
[1768343801808,0.61853959,145.96,145.92,6.85276039]
[1768343802519,6.43354589,145.97,145.92,7.50533207]
[1768343802725,6.53254589,145.97,145.92,7.50533207]
[1768343802901,0.099,145.97,145.92,7.50533207]
[1768343803222,6.43354589,145.98,145.94,0.65257168]
[1768343803398,6.43354589,145.99,145.94,0.65257168]
[1768343803598,6.43354589,145.99,145.95,0.65257168]
[1768343804193,13.28337213,145.99,145.95,0.65257168]
[1768343804412,0.61334419,145.98,145.93,6.85244321]
[1768343804613,0.61334419,145.98,145.93,6.85246732]
[1768343804807,7.04689008,145.98,145.93,7.505039]
[1768343805012,7.04689008,145.98,145.91,35.94677381]
[1768343805013,0.10414344,145.97,145.92,0.65257168]
[1768343805226,6.84982624,145.99,145.91,17.13322792]
[1768343805227,6.84881394,146.02,145.95,0.65257168]
[1768343805529,6.43354589,146.02,145.95,0.65257168]
[1768343805820,6.43354589,146.02,145.97,0.65257168]
[1768343806721,7.46675403,146.03,145.97,0.65257168]
[1768343807251,6.43354589,146.02,145.97,0.65257168]
[1768343807608,6.43354589,146.02,145.98,0.65257168]
[1768343807812,0.099,146.01,145.97,6.85051609]
[1768343808127,6.43354589,146.0,145.96,0.65257168]
[1768343810328,6.43354589,146.0,145.94,17.13032753]
[1768343810329,6.43354589,145.99,145.94,7.50465128]
[1768343810536,6.43354589,145.98,145.94,7.50465128]
[1768343811040,6.9534849,146.0,145.94,7.50465128]
[1768343811256,6.43354589,145.99,145.94,7.50465128]
[1768343811823,6.9534849,146.0,145.91,0.65257168]
[1768343811824,0.10918453,145.98,145.91,0.65257168]
[1768343812045,6.43354589,145.97,145.91,0.65257168]
[1768343812345,6.43354589,145.97,145.93,0.65257168]
[1768343812545,0.10918453,145.98,145.93,0.65257168]
[1768343812760,6.54273042,145.98,145.93,0.65257168]
[1768343812964,6.54273042,145.98,145.88,40.95270372]
[1768343812965,0.6032615,145.97,145.88,7.33268238]
[1768343813247,6.43354589,146.0,145.84,23.67508202]
[1768343813248,6.43354589,145.91,145.84,23.67508202]
[1768343813423,78.68730242,145.98,145.84,19.76560543]
[1768343813424,3.18183937,145.92,145.84,19.76560543]
[1768343814228,3.18183937,145.92,145.86,6.85559892]
[1768343814920,10.03505411,145.92,145.86,6.85559892]
[1768343815123,10.03505411,145.92,145.87,6.32424842]
[1768343815323,13.94924718,145.92,145.87,6.26424844]
[1768343815945,6.43826237,145.91,145.88,0.65257168]
[1768343816242,6.43826237,145.92,145.88,0.5925717]
[1768343817026,7.01113922,145.93,145.88,0.5925717]
[1768343817228,6.43826237,145.92,145.88,0.5925717]
[1768343817829,6.43826237,145.92,145.88,0.53257171]
[1768343818231,7.01113922,145.93,145.88,0.53257171]
[1768343818445,6.43826237,145.92,145.88,0.53257171]
[1768343818644,6.43826237,145.92,145.88,7.38747836]
[1768343818852,6.43826237,145.92,145.88,0.53257171]
[1768343819045,19.48229262,145.94,145.88,6.85481414]
[1768343819351,6.43826237,145.92,145.88,6.85481414]
[1768343819850,6.43826237,145.92,145.88,7.50738582]
[1768343820235,0.68159954,145.93,145.88,7.50738582]
[1768343820434,6.43826237,145.92,145.89,0.65257168]
[1768343821755,18.85826237,145.94,145.89,0.65257168]
[1768343821955,12.42,145.94,145.9,6.85400959]
[1768343822142,18.85826237,145.94,145.9,6.85400959]
[1768343822528,18.85826237,145.94,145.9,7.50658127]
[1768343822735,12.42,145.94,145.91,0.65257168]
[1768343822936,6.43826237,145.94,145.91,0.65257168]
[1768343823253,19.48153739,145.96,145.91,0.65257168]
[1768343823254,6.43826237,145.95,145.91,0.65257168]
[1768343823448,6.43826237,145.94,145.91,0.65257168]
[1768343823844,13.10159954,145.96,145.91,0.65257168]
[1768343824155,13.10159954,145.96,145.91,7.5060508]
[1768343824156,6.43826237,145.95,145.91,7.5060508]
[1768343824731,6.43826237,145.95,145.92,0.65257168]
[1768343824932,13.07542784,145.98,145.92,0.65257168]
[1768343825354,6.43826237,145.98,145.93,0.68389237]
[1768343825527,7.09369021,146.0,145.95,0.68389237]
[1768343826158,6.43826237,146.0,145.96,0.68389237]
[1768343826328,6.43826237,145.99,145.96,0.68389237]
[1768343826655,6.43826237,146.0,145.96,0.68389237]
[1768343826858,12.42,146.01,145.96,0.68389237]
[1768343827070,6.43826237,146.0,145.96,0.68389237]
[1768343827242,12.42,146.01,145.96,0.68389237]
[1768343827448,6.8480066,146.03,145.96,0.68389237]
[1768343827954,6.43826237,146.02,145.97,0.68389237]
[1768343828263,6.8480066,146.03,145.98,0.68389237]
[1768343828264,6.43826237,146.03,145.98,0.68389237]
[1768343828452,12.42,146.04,145.98,0.68389237]
[1768343828837,12.42,146.04,145.99,0.68389237]
[1768343829037,6.43826237,146.05,145.99,0.68389237]
[1768343829247,0.2,146.15,146.05,0.68389237]
[1768343829439,6.43826237,146.14,146.06,0.68389237]
[1768343829736,6.43826237,146.11,146.07,0.68389237]
[1768343830140,6.43826237,146.11,146.08,0.68389237]
[1768343830549,6.43826237,146.14,146.09,6.84509548]
[1768343830942,6.43826237,146.14,146.09,6.78509549]
[1768343831456,7.09369021,146.14,146.09,6.78509549]
[1768343831657,0.65542784,146.14,146.08,6.84555857]
[1768343831846,0.65542784,146.14,146.08,13.28382094]
[1768343832043,6.43826237,146.14,146.08,6.84555857]
[1768343832250,6.43826237,146.14,146.08,13.28382094]
[1768343832560,6.63826237,146.15,146.08,30.39773112]
[1768343832738,0.2,146.15,146.08,23.95946875]
[1768343832934,0.2,146.15,146.1,6.43826237]
[1768343833155,0.2,146.15,146.12,6.43826237]
[1768343833356,0.2,146.15,146.11,6.43826237]
[1768343833539,0.2,146.15,146.1,12.38]
[1768343833540,0.2,146.16,146.12,6.43826237]
[1768343834156,0.2,146.16,146.13,13.28148415]
[1768343834347,0.2,146.16,146.13,6.84322178]
[1768343834956,6.43826237,146.2,146.13,30.38953862]
[1768343835158,7.09369021,146.21,146.15,6.43826237]
[1768343835364,0.65542784,146.21,146.14,6.43826237]
[1768343835957,7.09369021,146.21,146.14,6.43826237]
[1768343836162,6.43826237,146.2,146.15,6.84228532]
[1768343836364,6.43826237,146.19,146.15,6.84228532]
[1768343836539,0.65542784,146.19,146.14,6.84273529]
[1768343836740,6.84007512,146.2,146.11,17.11015488]
[1768343836741,6.43826237,146.17,146.11,17.11015488]
[1768343836939,6.43826237,146.16,146.11,6.84408439]
[1768343837162,6.43826237,146.15,146.11,6.84408439]
[1768343837759,6.43826237,146.15,146.1,12.38]
[1768343837760,7.12012838,146.16,146.12,6.84364326]
[1768343838558,0.68186601,146.15,146.11,6.84415851]
[1768343838968,0.68186601,146.17,146.11,6.84415851]
[1768343839265,0.68186601,146.17,146.12,6.43826237]
[1768343839467,11.10575424,146.19,146.12,10.42388823]
[1768343839674,11.10575424,146.19,146.13,10.42388823]
[1768343839839,11.10575424,146.19,146.12,10.42388823]
[1768343840172,10.42388823,146.18,146.11,46.75844301]
[1768343840463,0.68186601,146.19,146.12,10.42388823]
[1768343840464,11.10575424,146.19,146.12,10.42388823]
[1768343841251,11.10575424,146.19,146.11,36.33455478]
[1768343841465,11.10575424,146.19,146.12,10.42388823]
[1768343841664,10.42388823,146.19,146.13,23.95127625]
[1768343841868,10.42388823,146.18,146.13,23.95127625]
[1768343842044,10.42388823,146.18,146.13,19.22322178]
[1768343842646,0.68186601,146.2,146.13,19.22322178]
[1768343842845,10.42388823,146.18,146.13,19.22322178]
[1768343843272,0.68186601,146.2,146.13,19.22322178]
[1768343843569,0.68186601,146.21,146.13,36.33127625]
[1768343843756,12.62,146.22,146.13,36.33127625]
[1768343843757,11.10575424,146.19,146.13,36.33127625]
[1768343844070,11.10575424,146.18,146.13,36.33127625]
[1768343844249,0.68186601,146.18,146.13,36.33127625]
[1768343845752,11.10575424,146.18,146.13,36.33127625]
[1768343845970,11.10575424,146.18,146.13,23.95127625]
[1768343846472,0.68186601,146.18,146.13,23.95127625]
[1768343847163,0.68186601,146.18,146.13,34.37516448]
[1768343847776,17.09719514,146.23,146.13,34.37516448]
[1768343847777,7.03701781,146.27,146.18,0.68186601]
[1768343848077,7.03701781,146.27,146.19,0.68186601]
[1768343848078,10.42388823,146.25,146.19,0.68186601]
[1768343848372,10.42388823,146.24,146.19,0.68186601]
[1768343848674,10.42388823,146.25,146.18,22.80388823]
[1768343848872,10.42388823,146.24,146.17,0.68186601]
[1768343849064,0.2,146.26,146.18,0.68186601]
[1768343849271,10.42388823,146.24,146.19,0.68186601]
[1768343849472,10.42388823,146.24,146.17,23.48575424]
[1768343849659,7.03730455,146.26,146.18,35.0488381]
[1768343849660,0.2,146.26,146.18,35.0488381]
[1768343849971,0.68186601,146.24,146.18,35.0488381]
[1768343850481,0.2,146.26,146.18,35.0488381]
[1768343850482,0.88186601,146.26,146.2,0.68186601]
[1768343850657,0.68186601,146.24,146.19,0.68186601]
[1768343851562,11.30575424,146.26,146.2,0.68186601]
[1768343851764,0.68186601,146.25,146.21,6.83947746]
[1768343851966,11.10575424,146.25,146.21,6.83947746]
[1768343852164,0.68186601,146.25,146.21,6.83947746]
[1768343852484,0.68186601,146.25,146.21,23.93817111]
[1768343854657,11.10575424,146.25,146.21,6.83947746]
[1768343856278,0.2,146.26,146.22,0.66464402]
[1768343856477,10.62388823,146.27,146.21,34.36205934]
[1768343856672,10.62388823,146.27,146.21,23.93817111]
[1768343856673,0.2,146.27,146.21,23.93817111]
[1768343856980,10.42388823,146.29,146.23,10.42388823]
[1768343857185,0.716398,146.29,146.21,23.93817111]
[1768343857374,0.716398,146.29,146.23,10.42388823]
[1768343857881,6.83450906,146.32,146.23,19.0401107]
[1768343857882,0.716398,146.32,146.23,19.0401107]
[1768343858069,0.716398,146.32,146.25,10.42388823]
[1768343858269,0.716398,146.29,146.25,12.36]
[1768343858570,0.2,146.34,146.29,0.66464402]
[1768343858879,1e-08,146.34,146.31,10.42388823]
[1768343859179,1e-08,146.34,146.31,0.66464402]
[1768343859381,1e-08,146.34,146.31,11.08853225]
[1768343859686,1e-08,146.34,146.32,0.66464402]
[1768343860060,1e-08,146.34,146.33,0.66464402]
[1768343860262,1e-08,146.34,146.33,7.49851267]
[1768343861462,1e-08,146.34,146.31,12.36]
[1768343861784,1e-08,146.34,146.32,6.83397886]
[1768343861988,1e-08,146.34,146.33,6.83386865]
[1768343862485,1e-08,146.34,146.33,7.49851267]
[1768343862785,1e-08,146.34,146.33,17.9224009]
[1768343863180,1e-08,146.34,146.33,7.49851267]
[1768343865072,1e-08,146.34,146.33,6.83386865]
[1768343865667,1e-08,146.34,146.32,6.8343357]
[1768343866993,1e-08,146.34,146.31,6.83480281]
[1768343867488,0.716398,146.33,146.27,28.17976685]
[1768343867690,0.716398,146.33,146.29,6.83539421]
[1768343868195,0.716398,146.33,146.3,6.83517696]
[1768343868995,0.716398,146.33,146.28,6.83620453]
[1768343869162,0.716398,146.33,146.28,17.92473678]
[1768343869568,0.716398,146.33,146.28,34.3506041]
[1768343869769,0.716398,146.33,146.28,23.92671587]
[1768343870199,0.716398,146.33,146.28,24.59135989]
[1768343870382,0.716398,146.33,146.28,23.92671587]
[1768343870591,0.716398,146.33,146.28,24.59135989]
[1768343870883,11.14028623,146.33,146.28,24.59135989]
[1768343871077,0.716398,146.33,146.28,35.01524812]
[1768343871394,0.716398,146.37,146.31,11.08853225]
[1768343871591,0.716398,146.37,146.32,9.69888823]
[1768343871767,0.716398,146.4,146.34,0.66464402]
[1768343871968,0.716398,146.39,146.33,10.42388823]
[1768343872387,0.716398,146.39,146.28,64.78784926]
[1768343872388,0.716398,146.38,146.32,10.42388823]
[1768343872578,10.42388823,146.38,146.32,0.66464402]
[1768343872788,0.716398,146.37,146.31,22.78388823]
[1768343873296,0.716398,146.37,146.32,35.0087072]
[1768343873704,0.716398,146.37,146.32,23.92017495]
[1768343874001,6.83161837,146.38,146.31,5.99250862]
[1768343874177,10.42388823,146.36,146.31,5.99250862]
[1768343874695,10.42388823,146.36,146.31,6.65715264]
[1768343874873,6.83161837,146.38,146.31,5.99250862]
[1768343875079,10.42388823,146.36,146.32,7.49886841]
[1768343875295,12.4,146.47,146.36,0.66464402]
[1768343875479,0.55998757,146.42,146.33,34.17483199]
[1768343875678,10.42388823,146.42,146.35,10.42388823]
[1768343875991,0.10360988,146.4,146.34,10.42388823]
[1768343876189,0.10360988,146.4,146.32,58.09174215]
[1768343876396,10.42388823,146.41,146.35,6.83293474]
[1768343876590,10.98853225,146.42,146.35,17.25682297]
[1768343876796,0.099,146.43,146.35,34.33915983]
[1768343877096,0.10360988,146.41,146.36,10.42388823]
[1768343877479,0.10360988,146.41,146.36,0.66464402]
[1768343877689,10.52288823,146.43,146.37,0.66464402]
[1768343877882,0.099,146.43,146.35,24.57991562]
[1768343878081,0.099,146.43,146.35,23.9152716]
[1768343878288,10.42388823,146.42,146.36,0.66464402]
[1768343878494,10.42388823,146.42,146.38,0.66464402]
[1768343878899,10.42388823,146.41,146.37,6.83200109]
[1768343879088,0.099,146.42,146.36,7.49696954]
[1768343879285,0.099,146.42,146.37,0.66464402]
[1768343879491,10.42388823,146.41,146.37,0.66464402]
[1768343880099,0.55998757,146.4,146.36,6.83232552]
[1768343880491,10.42388823,146.41,146.37,0.66464402]
[1768343881201,10.42388823,146.41,146.35,7.49748126]
[1768343881202,10.42388823,146.39,146.35,7.49748126]
[1768343881398,10.42388823,146.38,146.35,0.66464402]
[1768343881798,10.42388823,146.36,146.33,0.66464402]
[1768343882000,10.42388823,146.34,146.3,6.83485948]
[1768343882304,10.42388823,146.4,146.33,0.66464402]
[1768343882305,10.42388823,146.39,146.33,0.66464402]
[1768343882486,10.42388823,146.38,146.34,6.83340166]
[1768343883103,10.42388823,146.38,146.33,7.49838823]
[1768343883788,10.42388823,146.37,146.33,6.83374421]
[1768343885085,0.55998757,146.38,146.33,6.83374421]
[1768343885402,10.42388823,146.37,146.33,6.83374421]
[1768343886498,10.42388823,146.36,146.33,6.83374421]
[1768343887401,10.42388823,146.34,146.31,6.83450649]
[1768343887596,10.42388823,146.33,146.3,7.55991077]
[1768343888023,10.42388823,146.32,146.28,7.56052227]
[1768343888227,10.42388823,146.31,146.27,6.83656844]
[1768343888404,10.42388823,146.31,146.26,7.56172578]
[1768343889223,10.42388823,146.31,146.27,6.83664333]